[Event "Titled Tuesday Blitz January 03 Early 2023"]
[White "Svane, Rasmus"]
[Black "Ibarra Jerez, Jose Carlos"]
[WhiteFideId "4657101"]
[BlackFideId "2226332"]
[WhiteElo "2623"]
[BlackElo "2563"]
[Result "1-0"]
[Round "10"]
[TimeControl "180+2"]
[Date "2023.01.03"]
[WhiteClock "0:00:05"]
[BlackClock "0:00:03"]

1. Nf3 {[%clk 0:02:58]}  d6 {[%clk 0:02:59]} 2. d4 {[%clk 0:02:57]}  g6 {[%clk 0:03:00]} 3. e4 {[%clk 0:02:58]}  Nf6 {[%clk 0:03:00]} 4. Bd3 {[%clk 0:02:58]}  Bg7 {[%clk 0:03:01]} 5. O-O {[%clk 0:02:58]}  O-O {[%clk 0:03:01]} 6. h3 {[%clk 0:02:55]}  Nc6 {[%clk 0:03:01]} 7. c3 {[%clk 0:02:49]}  e5 {[%clk 0:03:01]} 8. Re1 {[%clk 0:02:48]}  Re8 {[%clk 0:03:01]} 9. Bc2 {[%clk 0:02:45]}  Nh5 {[%clk 0:03:00]} 10. Be3 {[%clk 0:02:43]}  h6 {[%clk 0:02:48]} 11. dxe5 {[%clk 0:02:24]}  dxe5 {[%clk 0:02:46]} 12. Qxd8 {[%clk 0:02:22]}  Nxd8 {[%clk 0:02:34]} 13. Na3 {[%clk 0:02:20]}  Nf4 {[%clk 0:02:22]} 14. Nc4 {[%clk 0:01:48]}  Bd7 {[%clk 0:02:01]} 15. Nfxe5 {[%clk 0:01:36]}  Nxh3+ {[%clk 0:01:44]} 16. gxh3 {[%clk 0:01:36]}  Bxe5 {[%clk 0:01:44]} 17. Nxe5 {[%clk 0:01:36]}  Rxe5 {[%clk 0:01:45]} 18. Bxh6 {[%clk 0:01:37]}  Rh5 {[%clk 0:01:35]} 19. Be3 {[%clk 0:01:28]}  Bxh3 {[%clk 0:01:33]} 20. f3 {[%clk 0:01:25]}  Nc6 {[%clk 0:01:26]} 21. Kf2 {[%clk 0:01:25]}  Be6 {[%clk 0:01:27]} 22. Rh1 {[%clk 0:01:23]}  Rxh1 {[%clk 0:01:26]} 23. Rxh1 {[%clk 0:01:24]}  f6 {[%clk 0:01:15]} 24. a4 {[%clk 0:01:19]}  a6 {[%clk 0:01:12]} 25. b4 {[%clk 0:01:18]}  Rd8 {[%clk 0:01:10]} 26. Rd1 {[%clk 0:01:16]}  Rxd1 {[%clk 0:01:08]} 27. Bxd1 {[%clk 0:01:16]}  Bc4 {[%clk 0:01:08]} 28. f4 {[%clk 0:01:13]}  f5 {[%clk 0:01:05]} 29. exf5 {[%clk 0:01:08]}  gxf5 {[%clk 0:01:05]} 30. Bh5 {[%clk 0:01:04]}  Kg7 {[%clk 0:01:01]} 31. a5 {[%clk 0:00:59]}  Kf6 {[%clk 0:01:00]} 32. Bc5 {[%clk 0:00:57]}  Ke6 {[%clk 0:00:57]} 33. Ke3 {[%clk 0:00:56]}  Bf1 {[%clk 0:00:52]} 34. Bf3 {[%clk 0:00:56]}  Bc4 {[%clk 0:00:50]} 35. Bd1 {[%clk 0:00:53]}  Kd5 {[%clk 0:00:43]} 36. Bc2 {[%clk 0:00:53]}  Ke6 {[%clk 0:00:37]} 37. Bd4 {[%clk 0:00:53]}  Bd5 {[%clk 0:00:23]} 38. Bd3 {[%clk 0:00:52]}  Bb3 {[%clk 0:00:19]} 39. Bc5 {[%clk 0:00:51]}  Bd5 {[%clk 0:00:19]} 40. Kd2 {[%clk 0:00:43]}  Nb8 {[%clk 0:00:19]} 41. Be2 {[%clk 0:00:33]}  Nd7 {[%clk 0:00:19]} 42. Bd4 {[%clk 0:00:33]}  Kd6 {[%clk 0:00:16]} 43. c4 {[%clk 0:00:32]}  Be4 {[%clk 0:00:16]} 44. b5 {[%clk 0:00:28]}  c5 {[%clk 0:00:14]} 45. Bg7 {[%clk 0:00:27]}  Ke6 {[%clk 0:00:13]} 46. Kc3 {[%clk 0:00:25]}  Kd6 {[%clk 0:00:11]} 47. Bh5 {[%clk 0:00:21]}  Ke6 {[%clk 0:00:11]} 48. Be8 {[%clk 0:00:18]}  Bg2 {[%clk 0:00:10]} 49. Bh5 {[%clk 0:00:16]}  Be4 {[%clk 0:00:09]} 50. Bd1 {[%clk 0:00:16]}  Bg2 {[%clk 0:00:09]} 51. Kd2 {[%clk 0:00:16]}  Nf6 {[%clk 0:00:09]} 52. Ke3 {[%clk 0:00:08]}  Bh1 {[%clk 0:00:07]} 53. bxa6 {[%clk 0:00:08]}  bxa6 {[%clk 0:00:07]} 54. Ba4 {[%clk 0:00:08]}  Ng4+ {[%clk 0:00:05]} 55. Kd2 {[%clk 0:00:08]}  Be4 {[%clk 0:00:03]} 56. Bc3 {[%clk 0:00:05]}  Bb7 {[%clk 0:00:03]} 57. Bd1 {[%clk 0:00:05]}  Nf6 {[%clk 0:00:04]} 58. Ke3 {[%clk 0:00:05]}  Ne4 {[%clk 0:00:04]} 59. Be5 {[%clk 0:00:05]}  Bc6 {[%clk 0:00:04]} 60. Bc2 {[%clk 0:00:05]}  Bd7 {[%clk 0:00:04]} 61. Bd3 {[%clk 0:00:05]}  Bc6 {[%clk 0:00:04]} 62. Be2 {[%clk 0:00:05]}  Bb7 {[%clk 0:00:04]} 63. Bh5 {[%clk 0:00:05]}  Bc6 {[%clk 0:00:05]} 64. Bg6 {[%clk 0:00:06]}  Bd7 {[%clk 0:00:04]} 65. Bh5 {[%clk 0:00:06]}  Bc6 {[%clk 0:00:05]} 66. Bd1 {[%clk 0:00:07]}  Bb7 {[%clk 0:00:05]} 67. Ba4 {[%clk 0:00:06]}  Nd6 {[%clk 0:00:05]} 68. Kd3 {[%clk 0:00:06]}  Bg2 {[%clk 0:00:06]} 69. Kc3 {[%clk 0:00:06]}  Bf1 {[%clk 0:00:05]} 70. Bxd6 {[%clk 0:00:04]}  Kxd6 {[%clk 0:00:05]} 71. Be8 {[%clk 0:00:05]}  Bg2 {[%clk 0:00:05]} 72. Bf7 {[%clk 0:00:05]}  Be4 {[%clk 0:00:05]} 73. Kd2 {[%clk 0:00:05]}  Ke7 {[%clk 0:00:04]} 74. Bg8 {[%clk 0:00:05]}  Kd6 {[%clk 0:00:04]} 75. Ke3 {[%clk 0:00:05]}  Ke7 {[%clk 0:00:04]} 76. Kf2 {[%clk 0:00:05]}  Kf6 {[%clk 0:00:04]} 77. Kg3 {[%clk 0:00:05]}  Bc6 {[%clk 0:00:05]} 78. Kh4 {[%clk 0:00:05]}  Bf3 {[%clk 0:00:05]} 79. Kg3 {[%clk 0:00:04]}  Bc6 {[%clk 0:00:05]} 80. Kf2 {[%clk 0:00:04]}  Kg7 {[%clk 0:00:05]} 81. Be6 {[%clk 0:00:04]}  Kf6 {[%clk 0:00:06]} 82. Bc8 {[%clk 0:00:05]}  Be4 {[%clk 0:00:03]} 83. Bxa6 {[%clk 0:00:05]}  Ke7 {[%clk 0:00:03]} 84. Kg3 {[%clk 0:00:04]}  Kd7 {[%clk 0:00:03]} 85. Kh4 {[%clk 0:00:04]}  Kc7 {[%clk 0:00:03]} 86. Kg5 {[%clk 0:00:05]}  Kb8 {[%clk 0:00:03]} 87. Bb5 {[%clk 0:00:05]}  Ka7 {[%clk 0:00:04]} 88. Kf6 {[%clk 0:00:05]}  Bd3 {[%clk 0:00:04]} 89. Ke5 {[%clk 0:00:05]}  Kb7 {[%clk 0:00:03]} 90. Kd5 {[%clk 0:00:05]}  Kc7 {[%clk 0:00:03]} 91. Kxc5 {[%clk 0:00:05]} 1-0


[Site "https://www.chess.com"]

[Event "Titled Tuesday Blitz January 03 Early 2023"]
[White "Boros, Denes"]
[Black "Narayanan, Srinath"]
[WhiteFideId "722340"]
[BlackFideId "5018420"]
[WhiteElo "2406"]
[BlackElo "2559"]
[Result "0-1"]
[Round "10"]
[TimeControl "180+2"]
[Date "2023.01.03"]
[WhiteClock "0:00:11"]
[BlackClock "0:00:11"]

1. e4 {[%clk 0:03:00]}  c6 {[%clk 0:02:59]} 2. Qe2 {[%clk 0:02:59]}  d5 {[%clk 0:02:59]} 3. Nf3 {[%clk 0:02:58]}  dxe4 {[%clk 0:03:00]} 4. Qxe4 {[%clk 0:02:58]}  Nf6 {[%clk 0:03:00]} 5. Qh4 {[%clk 0:02:59]}  g6 {[%clk 0:02:59]} 6. Bc4 {[%clk 0:02:58]}  Bg7 {[%clk 0:02:59]} 7. d4 {[%clk 0:02:57]}  O-O {[%clk 0:03:00]} 8. Bh6 {[%clk 0:02:55]}  Qb6 {[%clk 0:02:54]} 9. Bb3 {[%clk 0:02:47]}  a5 {[%clk 0:02:52]} 10. a4 {[%clk 0:02:46]}  Bf5 {[%clk 0:02:47]} 11. Nbd2 {[%clk 0:02:40]}  Bxc2 {[%clk 0:02:40]} 12. Bc4 {[%clk 0:02:21]}  Qxb2 {[%clk 0:02:35]} 13. O-O {[%clk 0:02:21]}  Nbd7 {[%clk 0:02:29]} 14. Rae1 {[%clk 0:02:14]}  e6 {[%clk 0:02:28]} 15. Re3 {[%clk 0:02:01]}  b5 {[%clk 0:02:25]} 16. axb5 {[%clk 0:01:43]}  cxb5 {[%clk 0:02:25]} 17. Bxe6 {[%clk 0:01:44]}  fxe6 {[%clk 0:02:25]} 18. Ng5 {[%clk 0:01:45]}  Bf5 {[%clk 0:01:48]} 19. Ndf3 {[%clk 0:01:33]}  Rae8 {[%clk 0:01:16]} 20. Ne5 {[%clk 0:01:31]}  Bxh6 {[%clk 0:00:58]} 21. Qxh6 {[%clk 0:01:32]}  Qxd4 {[%clk 0:00:56]} 22. Nxh7 {[%clk 0:01:13]}  Nxh7 {[%clk 0:00:45]} 23. Nxg6 {[%clk 0:01:04]}  Qg7 {[%clk 0:00:28]} 24. Qxg7+ {[%clk 0:01:01]}  Kxg7 {[%clk 0:00:29]} 25. Nxf8 {[%clk 0:01:02]}  Nhxf8 {[%clk 0:00:30]} 26. Rg3+ {[%clk 0:00:59]}  Kf6 {[%clk 0:00:28]} 27. Ra1 {[%clk 0:00:59]}  a4 {[%clk 0:00:28]} 28. h4 {[%clk 0:01:00]}  Ng6 {[%clk 0:00:26]} 29. h5 {[%clk 0:01:00]}  Nf4 {[%clk 0:00:27]} 30. Re3 {[%clk 0:00:56]}  Nxh5 {[%clk 0:00:25]} 31. f3 {[%clk 0:00:57]}  Ng7 {[%clk 0:00:25]} 32. g4 {[%clk 0:00:55]}  Bc2 {[%clk 0:00:25]} 33. Rc3 {[%clk 0:00:54]}  Bb3 {[%clk 0:00:25]} 34. f4 {[%clk 0:00:54]}  Nb6 {[%clk 0:00:22]} 35. Rc5 {[%clk 0:00:52]}  Bc4 {[%clk 0:00:21]} 36. Kf2 {[%clk 0:00:50]}  Nd5 {[%clk 0:00:21]} 37. Kg3 {[%clk 0:00:47]}  Ra8 {[%clk 0:00:22]} 38. Rc6 {[%clk 0:00:43]}  a3 {[%clk 0:00:21]} 39. Rd6 {[%clk 0:00:44]}  a2 {[%clk 0:00:20]} 40. Rd7 {[%clk 0:00:44]}  Ra3+ {[%clk 0:00:19]} 41. Kh4 {[%clk 0:00:43]}  Nxf4 {[%clk 0:00:19]} 42. g5+ {[%clk 0:00:43]}  Kg6 {[%clk 0:00:20]} 43. Kg4 {[%clk 0:00:43]}  e5 {[%clk 0:00:14]} 44. Rd6+ {[%clk 0:00:42]}  Be6+ {[%clk 0:00:14]} 45. Rxe6+ {[%clk 0:00:43]}  Ngxe6 {[%clk 0:00:15]} 46. Rh1 {[%clk 0:00:43]}  a1=Q {[%clk 0:00:12]} 47. Rh6+ {[%clk 0:00:43]}  Kg7 {[%clk 0:00:12]} 48. Kf5 {[%clk 0:00:12]}  Qb1+ {[%clk 0:00:12]} 49. Kg4 {[%clk 0:00:11]}  Qg1+ {[%clk 0:00:11]} 50. Kf5 {[%clk 0:00:11]}  Qxg5+ {[%clk 0:00:10]} 51. Ke4 {[%clk 0:00:11]}  Nc5# {[%clk 0:00:11]} 0-1


[Site "https://www.chess.com"]

[Event "Titled Tuesday Blitz January 03 Early 2023"]
[White "Kamsky, Gata"]
[Black "Bacrot, Etienne"]
[WhiteFideId "2000024"]
[BlackFideId "605506"]
[WhiteElo "2665"]
[BlackElo "2667"]
[Result "0-1"]
[Round "10"]
[TimeControl "180+2"]
[Date "2023.01.03"]
[WhiteClock "0:00:08"]
[BlackClock "0:00:04"]

1. d4 {[%clk 0:03:00]}  Nf6 {[%clk 0:02:59]} 2. Bf4 {[%clk 0:02:59]}  g6 {[%clk 0:02:53]} 3. c3 {[%clk 0:02:58]}  Bg7 {[%clk 0:02:52]} 4. Nf3 {[%clk 0:02:59]}  c5 {[%clk 0:02:52]} 5. e3 {[%clk 0:02:57]}  b6 {[%clk 0:02:51]} 6. a4 {[%clk 0:02:53]}  Bb7 {[%clk 0:02:50]} 7. a5 {[%clk 0:02:50]}  O-O {[%clk 0:02:39]} 8. Be2 {[%clk 0:02:46]}  d6 {[%clk 0:02:21]} 9. h3 {[%clk 0:02:42]}  Nbd7 {[%clk 0:02:20]} 10. a6 {[%clk 0:02:37]}  Bc6 {[%clk 0:02:19]} 11. Na3 {[%clk 0:02:37]}  Nd5 {[%clk 0:02:05]} 12. Bh2 {[%clk 0:02:36]}  Nc7 {[%clk 0:02:05]} 13. Nc4 {[%clk 0:02:00]}  Bb5 {[%clk 0:01:58]} 14. Ncd2 {[%clk 0:01:57]}  Bxe2 {[%clk 0:01:53]} 15. Qxe2 {[%clk 0:01:57]}  b5 {[%clk 0:01:54]} 16. O-O {[%clk 0:01:55]}  Rb8 {[%clk 0:01:54]} 17. Ra5 {[%clk 0:01:40]}  Rb6 {[%clk 0:01:42]} 18. Rfa1 {[%clk 0:01:39]}  c4 {[%clk 0:01:28]} 19. b3 {[%clk 0:01:29]}  cxb3 {[%clk 0:01:26]} 20. Nxb3 {[%clk 0:01:28]}  Nb8 {[%clk 0:01:26]} 21. c4 {[%clk 0:01:18]}  bxc4 {[%clk 0:01:13]} 22. Qxc4 {[%clk 0:01:17]}  Qd7 {[%clk 0:01:13]} 23. Bg3 {[%clk 0:01:10]}  Rc8 {[%clk 0:01:11]} 24. Qd3 {[%clk 0:01:10]}  Nc6 {[%clk 0:01:00]} 25. R5a4 {[%clk 0:00:55]}  Nb4 {[%clk 0:00:58]} 26. Qe2 {[%clk 0:00:40]}  Ncd5 {[%clk 0:00:52]} 27. Ra5 {[%clk 0:00:21]}  Nc3 {[%clk 0:00:44]} 28. Qb2 {[%clk 0:00:18]}  Ne4 {[%clk 0:00:27]} 29. Qe2 {[%clk 0:00:12]}  Nc6 {[%clk 0:00:13]} 30. R5a3 {[%clk 0:00:11]}  Nc3 {[%clk 0:00:13]} 31. Qd3 {[%clk 0:00:11]}  Nb4 {[%clk 0:00:12]} 32. Qd2 {[%clk 0:00:10]}  Ne4 {[%clk 0:00:12]} 33. Qd1 {[%clk 0:00:10]}  Nxg3 {[%clk 0:00:13]} 34. fxg3 {[%clk 0:00:10]}  Nc2 {[%clk 0:00:13]} 35. R1a2 {[%clk 0:00:09]}  Nxa3 {[%clk 0:00:13]} 36. Rxa3 {[%clk 0:00:10]}  Rc3 {[%clk 0:00:13]} 37. Kf2 {[%clk 0:00:08]}  Bh6 {[%clk 0:00:13]} 38. Nc5 {[%clk 0:00:07]}  Bxe3+ {[%clk 0:00:11]} 39. Ke2 {[%clk 0:00:07]}  dxc5 {[%clk 0:00:10]} 40. Rxc3 {[%clk 0:00:08]}  Bxd4 {[%clk 0:00:05]} 41. Nxd4 {[%clk 0:00:07]}  cxd4 {[%clk 0:00:05]} 42. Rc4 {[%clk 0:00:08]}  Qe6+ {[%clk 0:00:04]} 43. Kd3 {[%clk 0:00:08]}  Qf5+ {[%clk 0:00:04]} 0-1


[Site "https://www.chess.com"]

[Event "Titled Tuesday Blitz January 03 Early 2023"]
[White "Deac, Bogdan-Daniel"]
[Black "Rozman, Levy"]
[WhiteFideId "1226380"]
[BlackFideId "2039877"]
[WhiteElo "2700"]
[BlackElo "2322"]
[Result "1-0"]
[Round "10"]
[TimeControl "180+2"]
[Date "2023.01.03"]
[WhiteClock "0:00:05"]
[BlackClock "0:00:02"]

1. b3 {[%clk 0:03:00]}  f5 {[%clk 0:02:52]} 2. Bb2 {[%clk 0:03:01]}  Nf6 {[%clk 0:02:52]} 3. g3 {[%clk 0:03:01]}  e6 {[%clk 0:02:52]} 4. Bg2 {[%clk 0:03:00]}  a5 {[%clk 0:02:52]} 5. Nf3 {[%clk 0:03:00]}  a4 {[%clk 0:02:53]} 6. O-O {[%clk 0:03:00]}  Be7 {[%clk 0:02:53]} 7. d3 {[%clk 0:02:59]}  O-O {[%clk 0:02:52]} 8. c4 {[%clk 0:02:59]}  a3 {[%clk 0:02:45]} 9. Bc3 {[%clk 0:02:58]}  d5 {[%clk 0:02:43]} 10. Nbd2 {[%clk 0:02:57]}  c5 {[%clk 0:02:33]} 11. e3 {[%clk 0:02:54]}  Nc6 {[%clk 0:02:30]} 12. d4 {[%clk 0:02:51]}  Ne4 {[%clk 0:02:27]} 13. Qc1 {[%clk 0:02:42]}  Bf6 {[%clk 0:02:22]} 14. cxd5 {[%clk 0:02:41]}  exd5 {[%clk 0:02:07]} 15. Qc2 {[%clk 0:02:40]}  b6 {[%clk 0:01:53]} 16. Rfd1 {[%clk 0:02:35]}  Be6 {[%clk 0:01:45]} 17. Nxe4 {[%clk 0:02:34]}  fxe4 {[%clk 0:01:43]} 18. Ne5 {[%clk 0:02:35]}  Bxe5 {[%clk 0:01:40]} 19. dxe5 {[%clk 0:02:34]}  Qg5 {[%clk 0:01:39]} 20. b4 {[%clk 0:02:12]}  cxb4 {[%clk 0:01:30]} 21. Bd4 {[%clk 0:02:12]}  Nxe5 {[%clk 0:01:26]} 22. Qb3 {[%clk 0:02:12]}  Nd3 {[%clk 0:01:21]} 23. Rxd3 {[%clk 0:02:02]}  exd3 {[%clk 0:01:21]} 24. Qxd3 {[%clk 0:02:02]}  Rac8 {[%clk 0:01:07]} 25. Qd2 {[%clk 0:02:01]}  Qf5 {[%clk 0:01:01]} 26. e4 {[%clk 0:02:00]}  dxe4 {[%clk 0:00:59]} 27. Qxb4 {[%clk 0:02:01]}  Rc4 {[%clk 0:00:56]} 28. Qxb6 {[%clk 0:02:01]}  h5 {[%clk 0:00:45]} 29. h4 {[%clk 0:01:59]}  Rfc8 {[%clk 0:00:40]} 30. Be3 {[%clk 0:01:57]}  Rc2 {[%clk 0:00:37]} 31. Qa7 {[%clk 0:01:55]}  Rxa2 {[%clk 0:00:26]} 32. Rd1 {[%clk 0:01:48]}  Rf8 {[%clk 0:00:21]} 33. Rd6 {[%clk 0:01:45]}  Ra1+ {[%clk 0:00:20]} 34. Kh2 {[%clk 0:01:44]}  a2 {[%clk 0:00:17]} 35. Bd4 {[%clk 0:01:44]}  Rf7 {[%clk 0:00:08]} 36. Qb8+ {[%clk 0:01:32]}  Rf8 {[%clk 0:00:08]} 37. Qc7 {[%clk 0:01:32]}  Rf7 {[%clk 0:00:06]} 38. Qd8+ {[%clk 0:00:18]}  Rf8 {[%clk 0:00:06]} 39. Qe7 {[%clk 0:00:18]}  Rf7 {[%clk 0:00:04]} 40. Qe8+ {[%clk 0:00:16]}  Rf8 {[%clk 0:00:04]} 41. Qe7 {[%clk 0:00:11]}  Rf7 {[%clk 0:00:04]} 42. Qd8+ {[%clk 0:00:10]}  Rf8 {[%clk 0:00:04]} 43. Qc7 {[%clk 0:00:11]}  Rf7 {[%clk 0:00:04]} 44. Qc6 {[%clk 0:00:11]}  Rd1 {[%clk 0:00:03]} 45. Rd8+ {[%clk 0:00:10]}  Kh7 {[%clk 0:00:02]} 46. Bxe4 {[%clk 0:00:09]}  Rxd4 {[%clk 0:00:02]} 47. Bxf5+ {[%clk 0:00:09]}  Bxf5 {[%clk 0:00:02]} 48. Rxd4 {[%clk 0:00:04]}  a1=Q {[%clk 0:00:02]} 49. Qd5 {[%clk 0:00:05]} 1-0


[Site "https://www.chess.com"]

[Event "Titled Tuesday Blitz January 03 Early 2023"]
[White "Antonica, Dragos-Andrei"]
[Black "Oparin, Grigoriy"]
[WhiteFideId "1246372"]
[BlackFideId "24125890"]
[WhiteElo "2373"]
[BlackElo "2667"]
[Result "1/2-1/2"]
[Round "10"]
[TimeControl "180+2"]
[Date "2023.01.03"]
[WhiteClock "0:00:42"]
[BlackClock "0:00:47"]

1. Nf3 {[%clk 0:03:00]}  c5 {[%clk 0:02:58]} 2. e4 {[%clk 0:03:00]}  d6 {[%clk 0:02:57]} 3. Bb5+ {[%clk 0:02:59]}  Bd7 {[%clk 0:02:57]} 4. c4 {[%clk 0:03:00]}  Nf6 {[%clk 0:02:57]} 5. Nc3 {[%clk 0:03:00]}  g6 {[%clk 0:02:57]} 6. O-O {[%clk 0:03:00]}  Bg7 {[%clk 0:02:57]} 7. d4 {[%clk 0:02:58]}  cxd4 {[%clk 0:02:57]} 8. Nxd4 {[%clk 0:02:59]}  O-O {[%clk 0:02:57]} 9. h3 {[%clk 0:02:57]}  a6 {[%clk 0:02:57]} 10. Bxd7 {[%clk 0:02:57]}  Nfxd7 {[%clk 0:02:58]} 11. Be3 {[%clk 0:02:57]}  Nc6 {[%clk 0:02:58]} 12. Rc1 {[%clk 0:02:54]}  Rc8 {[%clk 0:02:59]} 13. b3 {[%clk 0:02:52]}  Re8 {[%clk 0:02:52]} 14. Qd2 {[%clk 0:02:51]}  Qa5 {[%clk 0:02:47]} 15. Nxc6 {[%clk 0:02:48]}  bxc6 {[%clk 0:02:46]} 16. Rfd1 {[%clk 0:02:46]}  Nc5 {[%clk 0:02:44]} 17. f3 {[%clk 0:02:43]}  Ne6 {[%clk 0:02:42]} 18. Ne2 {[%clk 0:02:42]}  Qxd2 {[%clk 0:02:42]} 19. Rxd2 {[%clk 0:02:43]}  c5 {[%clk 0:02:41]} 20. Nc3 {[%clk 0:02:34]}  Nd4 {[%clk 0:02:34]} 21. Nd5 {[%clk 0:02:32]}  e6 {[%clk 0:02:31]} 22. Nf4 {[%clk 0:02:31]}  f5 {[%clk 0:02:28]} 23. Nd3 {[%clk 0:02:25]}  a5 {[%clk 0:02:26]} 24. Bxd4 {[%clk 0:02:24]}  Bxd4+ {[%clk 0:02:26]} 25. Kf1 {[%clk 0:02:23]}  Rb8 {[%clk 0:02:22]} 26. Rb1 {[%clk 0:02:19]}  Re7 {[%clk 0:02:21]} 27. Ke2 {[%clk 0:02:19]}  Reb7 {[%clk 0:02:21]} 28. Nf4 {[%clk 0:02:02]}  Kf7 {[%clk 0:02:21]} 29. Kd3 {[%clk 0:01:56]}  a4 {[%clk 0:02:17]} 30. Ne2 {[%clk 0:01:43]}  axb3 {[%clk 0:02:09]} 31. Nxd4 {[%clk 0:01:42]}  cxd4 {[%clk 0:02:02]} 32. Kxd4 {[%clk 0:01:33]}  Kf6 {[%clk 0:02:03]} 33. axb3 {[%clk 0:01:29]}  Rxb3 {[%clk 0:02:02]} 34. Rxb3 {[%clk 0:01:28]}  Rxb3 {[%clk 0:02:03]} 35. f4 {[%clk 0:01:27]}  fxe4 {[%clk 0:01:38]} 36. Kxe4 {[%clk 0:01:28]}  Rb6 {[%clk 0:01:38]} 37. g4 {[%clk 0:01:25]}  Rc6 {[%clk 0:01:34]} 38. Kd4 {[%clk 0:01:24]}  h6 {[%clk 0:01:27]} 39. h4 {[%clk 0:01:17]}  h5 {[%clk 0:01:27]} 40. gxh5 {[%clk 0:01:15]}  gxh5 {[%clk 0:01:28]} 41. Rg2 {[%clk 0:01:16]}  Rc5 {[%clk 0:01:24]} 42. Rg5 {[%clk 0:01:13]}  Rf5 {[%clk 0:01:21]} 43. Ke4 {[%clk 0:01:09]}  Rc5 {[%clk 0:01:01]} 44. Kd4 {[%clk 0:00:58]}  Rf5 {[%clk 0:00:58]} 45. Ke4 {[%clk 0:00:56]}  d5+ {[%clk 0:00:56]} 46. cxd5 {[%clk 0:00:55]}  exd5+ {[%clk 0:00:57]} 47. Ke3 {[%clk 0:00:48]}  Ke6 {[%clk 0:00:54]} 48. Kf3 {[%clk 0:00:46]}  Kf6 {[%clk 0:00:48]} 49. Ke3 {[%clk 0:00:45]}  Ke6 {[%clk 0:00:47]} 50. Kf3 {[%clk 0:00:42]}  Kf6 {[%clk 0:00:47]} 51. Ke3 {[%clk 0:00:42]} 1/2-1/2


[Site "https://www.chess.com"]

[Event "Titled Tuesday Blitz January 03 Early 2023"]
[White "Matinian, Nikita"]
[Black "Gunina, Valentina"]
[WhiteFideId "24129100"]
[BlackFideId "4167570"]
[WhiteElo "2407"]
[BlackElo "2469"]
[Result "1-0"]
[Round "10"]
[TimeControl "180+2"]
[Date "2023.01.03"]
[WhiteClock "0:00:27"]
[BlackClock "0:01:15"]

1. e4 {[%clk 0:03:00]}  c6 {[%clk 0:02:58]} 2. d4 {[%clk 0:03:00]}  d5 {[%clk 0:02:58]} 3. e5 {[%clk 0:03:01]}  c5 {[%clk 0:02:58]} 4. Nf3 {[%clk 0:03:02]}  cxd4 {[%clk 0:02:58]} 5. Qxd4 {[%clk 0:03:03]}  Nc6 {[%clk 0:02:58]} 6. Qf4 {[%clk 0:03:03]}  g6 {[%clk 0:02:56]} 7. Be3 {[%clk 0:02:56]}  Bh6 {[%clk 0:02:53]} 8. Qg3 {[%clk 0:02:49]}  Bxe3 {[%clk 0:02:53]} 9. fxe3 {[%clk 0:02:50]}  Qb6 {[%clk 0:02:53]} 10. Nbd2 {[%clk 0:02:45]}  Qxe3+ {[%clk 0:02:50]} 11. Be2 {[%clk 0:02:44]}  Nh6 {[%clk 0:02:49]} 12. Nf1 {[%clk 0:02:35]}  Qb6 {[%clk 0:02:44]} 13. O-O-O {[%clk 0:02:33]}  Nf5 {[%clk 0:02:44]} 14. Qf4 {[%clk 0:02:29]}  Be6 {[%clk 0:02:43]} 15. g4 {[%clk 0:02:21]}  Ng7 {[%clk 0:02:43]} 16. Ng3 {[%clk 0:02:09]}  Rc8 {[%clk 0:02:42]} 17. Kb1 {[%clk 0:02:06]}  Qb4 {[%clk 0:02:31]} 18. Qh6 {[%clk 0:02:01]}  Kf8 {[%clk 0:02:19]} 19. Ng5 {[%clk 0:01:53]}  Nxe5 {[%clk 0:02:12]} 20. Nxe6+ {[%clk 0:01:38]}  fxe6 {[%clk 0:02:12]} 21. Rhf1+ {[%clk 0:01:38]}  Kg8 {[%clk 0:02:13]} 22. Qg5 {[%clk 0:01:36]}  Nf7 {[%clk 0:02:08]} 23. Qe3 {[%clk 0:01:32]}  Qb6 {[%clk 0:02:08]} 24. Qf4 {[%clk 0:01:22]}  Rf8 {[%clk 0:02:07]} 25. Rd3 {[%clk 0:01:15]}  e5 {[%clk 0:02:05]} 26. Qd2 {[%clk 0:01:11]}  d4 {[%clk 0:01:55]} 27. Rdf3 {[%clk 0:01:09]}  Ne6 {[%clk 0:01:55]} 28. Bc4 {[%clk 0:01:07]}  Qc6 {[%clk 0:01:55]} 29. Qb4 {[%clk 0:00:50]}  Nf4 {[%clk 0:01:48]} 30. Ne2 {[%clk 0:00:40]}  Kg7 {[%clk 0:01:44]} 31. Rxf4 {[%clk 0:00:32]}  exf4 {[%clk 0:01:43]} 32. Nxd4 {[%clk 0:00:32]}  Qd6 {[%clk 0:01:35]} 33. Ne6+ {[%clk 0:00:29]}  Kh6 {[%clk 0:01:32]} 34. Qc3 {[%clk 0:00:28]}  Ng5 {[%clk 0:01:15]} 35. Qg7# {[%clk 0:00:27]} 1-0


[Site "https://www.chess.com"]

[Event "Titled Tuesday Blitz January 03 Early 2023"]
[White "Galchenko, Matvey"]
[Black "Skvortsov, Andrei"]
[WhiteFideId "24175480"]
[BlackFideId "24108600"]
[WhiteElo "2438"]
[BlackElo "2313"]
[Result "1-0"]
[Round "10"]
[TimeControl "180+2"]
[Date "2023.01.03"]
[WhiteClock "0:00:25"]
[BlackClock "0:00:02"]

1. f4 {[%clk 0:03:00]}  c5 {[%clk 0:02:31]} 2. Nf3 {[%clk 0:03:00]}  d5 {[%clk 0:02:31]} 3. g3 {[%clk 0:03:01]}  Nc6 {[%clk 0:02:31]} 4. Bg2 {[%clk 0:03:02]}  g6 {[%clk 0:02:31]} 5. O-O {[%clk 0:03:02]}  Bg7 {[%clk 0:02:32]} 6. d3 {[%clk 0:03:03]}  e6 {[%clk 0:02:28]} 7. Nc3 {[%clk 0:03:01]}  Nge7 {[%clk 0:02:26]} 8. e4 {[%clk 0:03:01]}  dxe4 {[%clk 0:02:26]} 9. dxe4 {[%clk 0:03:02]}  Qxd1 {[%clk 0:02:20]} 10. Rxd1 {[%clk 0:03:02]}  Nd4 {[%clk 0:02:20]} 11. Ne1 {[%clk 0:02:51]}  Nec6 {[%clk 0:02:17]} 12. e5 {[%clk 0:02:46]}  O-O {[%clk 0:02:10]} 13. Ne4 {[%clk 0:02:44]}  Rd8 {[%clk 0:01:58]} 14. Be3 {[%clk 0:02:30]}  Bf8 {[%clk 0:01:47]} 15. c3 {[%clk 0:02:24]}  Nf5 {[%clk 0:01:43]} 16. Rxd8 {[%clk 0:02:24]}  Nxd8 {[%clk 0:01:40]} 17. Bxc5 {[%clk 0:02:23]}  Bxc5+ {[%clk 0:01:33]} 18. Nxc5 {[%clk 0:02:23]}  Kf8 {[%clk 0:01:24]} 19. Rd1 {[%clk 0:02:18]}  Ke7 {[%clk 0:01:24]} 20. Kf2 {[%clk 0:02:18]}  Rb8 {[%clk 0:01:21]} 21. Nc2 {[%clk 0:01:41]}  b6 {[%clk 0:01:18]} 22. Ne4 {[%clk 0:01:41]}  h5 {[%clk 0:00:52]} 23. Nf6 {[%clk 0:01:33]}  a5 {[%clk 0:00:40]} 24. h3 {[%clk 0:01:16]}  Nb7 {[%clk 0:00:12]} 25. g4 {[%clk 0:01:14]}  hxg4 {[%clk 0:00:11]} 26. hxg4 {[%clk 0:01:15]}  Nh4 {[%clk 0:00:11]} 27. Nd4 {[%clk 0:01:16]}  Nxg2 {[%clk 0:00:06]} 28. Nc6+ {[%clk 0:01:12]}  Kf8 {[%clk 0:00:05]} 29. Nxb8 {[%clk 0:00:41]}  Nxf4 {[%clk 0:00:05]} 30. Nc6 {[%clk 0:00:41]}  g5 {[%clk 0:00:05]} 31. Na7 {[%clk 0:00:37]}  Nc5 {[%clk 0:00:02]} 32. Rd8+ {[%clk 0:00:37]}  Kg7 {[%clk 0:00:01]} 33. Rg8+ {[%clk 0:00:38]}  Kh6 {[%clk 0:00:01]} 34. Nxc8 {[%clk 0:00:29]}  Ncd3+ {[%clk 0:00:02]} 35. Ke3 {[%clk 0:00:27]}  Nxe5 {[%clk 0:00:02]} 36. Nd6 {[%clk 0:00:25]} 1-0


[Site "https://www.chess.com"]